[Event "DVM U12w 2024"]
[Site "Bad Homburg"]
[Date "2024.12.29"]
[Round "6"]
[White "Ramien, Eva"]
[Black "Subocz, Barbara"]
[Result "1/2-1/2"]
[ECO "C50"]
[WhiteElo "1542"]
[BlackElo "1623"]
[Annotator "NA RC"]
[PlyCount "88"]
[EventDate "2024.12.23"]
[EventType "team-tourn"]
[EventRounds "7"]
[EventCountry "GER"]
[SourceTitle "playchess.com"]
[Source "ChessBase"]
[SourceQuality "1"]
[TimeControl "40/5400+30:1800+30"]

1. e4 {[%emt 0:00:01]} e5 {[%emt 0:00:06]} 2. Nf3 {[%emt 0:00:06]} Nc6 {[%emt 0:00:06]} 3. Bc4 {[%emt 0:00:06]} Nf6 {[%emt 0:00:06]} 4. d3 {[%emt 0:00:11]} Bc5 {[%emt 0:00:09]} 5. Nc3 {[%emt 0:00:09]} d6 {[%emt 0:00:12]} 6. h3 {[%emt 0:00:26]} h6 {[%emt 0:02:03]} 7. Bd2 {[%emt 0:00:09]} Be6 {[%emt 0:02:27]} 8. Bb3 {[%emt 0:00:07]} Na5 {[%emt 0:01:40]} 9. Na4 {[%emt 0:03:16]} Nxb3 {[%emt 0:04:22]} 10. axb3 {[%emt 0:00:07]} Bb6 {[%emt 0:00:45]} 11. Nxb6 {[%emt 0:00:14]} axb6 {[%emt 0:00:11]} 12. Rxa8 {[%emt 0:00:15]} Qxa8 {[%emt 0:00:05]} 13. O-O {[%emt 0:00:20]} O-O {[%emt 0:00:25]} 14. Qa1 {[%emt 0:00:44]} Qd8 {[%emt 0:06:59]} 15. Qc1 {[%emt 0:00:16]} Kh7 {[%emt 0:01:38]} 16. Re1 {[%emt 0:00:28]} Ng8 {[%emt 0:05:37]} 17. d4 {[%emt 0:02:37]} exd4 {[%emt 0:02:17]} 18. Nxd4 {[%emt 0:00:11]} Qf6 {[%emt 0:00:25]} 19. Nxe6 {[%emt 0:00:25]} fxe6 {[%emt 0:00:11]} 20. Rf1 {[%emt 0:01:19]} Qg6 {[%emt 0:00:39]} 21. Qe1 {[%emt 0:01:15]} e5 {[%emt 0:01:29]} 22. f4 {[%emt 0:04:50]} exf4 {[%emt 0:02:34]} 23. Rxf4 {[%emt 0:00:23]} Rxf4 {[%emt 0:02:17]} 24. Bxf4 {[%emt 0:00:08]} Qf6 {[%emt 0:00:57]} 25. Bc1 {[%emt 0:00:47]} Qd4+ {[%emt 0:00:32]} 26. Kh1 {[%emt 0:00:26]} Nf6 {[%emt 0:00:35]} 27. e5 {[%emt 0:10:25]} dxe5 {[%emt 0:01:06]} 28. c3 {[%emt 0:00:40]} Qd5 {[%emt 0:00:38]} 29. b4 {[%emt 0:01:05]} c5 {[%emt 0:02:09]} 30. bxc5 {[%emt 0:00:56]} bxc5 {[%emt 0:00:09]} 31. Qf1 {[%emt 0:03:56]} Qb3 {[%emt 0:03:18]} 32. Kh2 {[%emt 0:01:45]} Qc2 {[%emt 0:02:40]} 33. Qe1 {[%emt 0:00:52]} e4 {[%emt 0:01:24]} 34. Be3 {[%emt 0:02:22]} c4 {[%emt 0:01:31]} 35. Bd4 {[%emt 0:07:47]} b5 {[%emt 0:08:17]} 36. Qf1 {[%emt 0:12:15]} Qd3 {[%emt 0:04:02]} 37. Qf5+ {[%emt 0:06:25]} Kg8 {[%emt 0:05:40]} 38. Qe6+ {[%emt 0:04:02]} Kh7 {[%emt 0:02:14]} 39. Bxf6 {[%emt 0:06:17]} gxf6 {[%emt 0:02:25]} 40. Qf7+ {[%emt 0:00:14]} Kh8 {[%emt 0:00:12]} 41. Qf8+ {[%emt 0:30:08]} Kh7 {[%emt 0:30:29]} 42. Qf7+ {[%emt 0:00:08]} Kh8 {[%emt 0:00:05]} 43. Qf8+ {[%emt 0:00:06]} Kh7 {[%emt 0:00:12]} 44. Qf7+ {[%emt 0:00:04]} Kh8 {[%emt 0:00:06]} 1/2-1/2

[Event "DVM U12w 2024"]
[Site "Bad Homburg"]
[Date "2024.12.29"]
[Round "6"]
[White "Bacakova, Klara"]
[Black "Klymenko, Mariia"]
[Result "1/2-1/2"]
[ECO "C00"]
[WhiteElo "1539"]
[BlackElo "1625"]
[Annotator "NA RC"]
[PlyCount "61"]
[EventDate "2024.12.23"]
[EventType "team-tourn"]
[EventRounds "7"]
[EventCountry "GER"]
[SourceTitle "playchess.com"]
[Source "ChessBase"]
[SourceQuality "1"]
[TimeControl "40/5400+30:1800+30"]

1. e4 {[%emt 0:00:02]} e6 {[%emt 0:00:04]} 2. d3 {[%emt 0:01:16]} d5 {[%emt 0:00:06]} 3. Nd2 {[%emt 0:00:07]} b6 {[%emt 0:00:07]} 4. Ngf3 {[%emt 0:00:52]} Bb7 {[%emt 0:00:07]} 5. g3 {[%emt 0:00:31]} Nf6 {[%emt 0:00:07]} 6. e5 {[%emt 0:00:45]} Nfd7 {[%emt 0:00:05]} 7. d4 {[%emt 0:02:04]} c5 {[%emt 0:00:20]} 8. c3 {[%emt 0:00:18]} Nc6 {[%emt 0:00:08]} 9. Bg2 {[%emt 0:01:11]} Be7 {[%emt 0:00:31]} 10. O-O {[%emt 0:00:27]} Qc7 {[%emt 0:00:08]} 11. Re1 {[%emt 0:01:32]} O-O-O {[%emt 0:00:25]} 12. a3 {[%emt 0:05:16]} g5 {[%emt 0:01:03]} 13. b4 {[%emt 0:00:30]} c4 {[%emt 0:00:30]} 14. Nf1 {[%emt 0:00:30]} Rdg8 {[%emt 0:41:38]} 15. a4 {[%emt 0:27:55]} Kb8 {[%emt 0:00:00]} 16. Ba3 {[%emt 0:02:28]} Nf8 {[%emt 0:00:00]} 17. b5 {[%emt 0:01:43]} Na5 {[%emt 0:00:00]} 18. N3d2 {[%emt 0:00:41]} Bxa3 {[%emt 0:00:00]} 19. Rxa3 {[%emt 0:03:16]} g4 {[%emt 0:00:00]} 20. Ne3 {[%emt 0:03:42]} h5 {[%emt 0:00:00]} 21. Rf1 {[%emt 0:03:23]} Qe7 {[%emt 0:00:00]} 22. Ra2 {[%emt 0:02:21]} Qg5 {[%emt 0:00:00]} 23. Qe2 {[%emt 0:06:43]} h4 {[%emt 0:00:00]} 24. f4 {[%emt 0:08:36]} Qh5 {[%emt 0:05:10]} 25. h3 {[%emt 0:07:00]} gxh3 {[%emt 0:10:53]} 26. Qxh5 {[%emt 0:00:55]} Rxh5 {[%emt 0:00:12]} 27. Bf3 {[%emt 0:02:42]} Rhh8 {[%emt 0:02:33]} 28. g4 {[%emt 0:01:18]} Ng6 {[%emt 0:03:04]} 29. Bd1 {[%emt 0:01:05]} Bc8 {[%emt 0:04:14]} 30. Kh2 {[%emt 0:01:02]} Bd7 {[%emt 0:02:04]} 31. Kxh3 {[%emt 0:00:52]} 1/2-1/2

[Event "DVM U12w 2024"]
[Site "Bad Homburg"]
[Date "2024.12.29"]
[Round "6"]
[White "Huang, Jasmin Shuya"]
[Black "Kuebart, Ela Marie"]
[Result "1/2-1/2"]
[ECO "C01"]
[WhiteElo "1523"]
[BlackElo "1561"]
[Annotator "NA RC"]
[PlyCount "54"]
[EventDate "2024.12.23"]
[EventType "team-tourn"]
[EventRounds "7"]
[EventCountry "GER"]
[SourceTitle "playchess.com"]
[Source "ChessBase"]
[SourceQuality "1"]
[TimeControl "40/5400+30:1800+30"]

1. e4 {[%emt 0:00:01]} e6 {[%emt 0:00:07]} 2. d4 {[%emt 0:00:04]} d5 {[%emt 0:00:04]} 3. exd5 {[%emt 0:00:03]} exd5 {[%emt 0:00:07]} 4. Nf3 {[%emt 0:00:04]} Nf6 {[%emt 0:00:47]} 5. Bg5 {[%emt 0:00:11]} Bd6 {[%emt 0:02:22]} 6. Bd3 {[%emt 0:02:10]} Be6 {[%emt 0:01:22]} 7. c3 {[%emt 0:01:11]} Nbd7 {[%emt 0:00:32]} 8. Nbd2 {[%emt 0:00:52]} c6 {[%emt 0:00:39]} 9. Qc2 {[%emt 0:00:52]} Qc7 {[%emt 0:01:12]} 10. O-O {[%emt 0:00:15]} O-O {[%emt 0:00:35]} 11. Rae1 {[%emt 0:08:15]} h6 {[%emt 0:04:58]} 12. Bh4 {[%emt 0:02:27]} Rfe8 {[%emt 0:07:39]} 13. Nb3 {[%emt 0:10:31]} Bg4 {[%emt 0:02:36]} 14. Nbd2 {[%emt 0:02:12]} Bf4 {[%emt 0:01:35]} 15. Bg3 {[%emt 0:07:00]} Nh5 {[%emt 0:10:19]} 16. Bf5 {[%emt 0:05:36]} Nxg3 {[%emt 0:05:25]} 17. fxg3 {[%emt 0:00:44]} Bxd2 {[%emt 0:06:32]} 18. Nxd2 {[%emt 0:02:03]} Bxf5 {[%emt 0:04:18]} 19. Qxf5 {[%emt 0:00:11]} Nf6 {[%emt 0:00:27]} 20. Qf4 {[%emt 0:09:31]} Qxf4 {[%emt 0:01:05]} 21. gxf4 {[%emt 0:00:29]} Rxe1 {[%emt 0:02:09]} 22. Rxe1 {[%emt 0:00:07]} Re8 {[%emt 0:00:06]} 23. Rxe8+ {[%emt 0:00:22]} Nxe8 {[%emt 0:00:06]} 24. Kf2 {[%emt 0:00:26]} f5 {[%emt 0:03:16]} 25. h3 {[%emt 0:01:22]} Nd6 {[%emt 0:02:31]} 26. Nf3 {[%emt 0:01:17]} Ne4+ {[%emt 0:00:37]} 27. Ke3 {[%emt 0:00:40]} Kf7 {[%emt 0:10:33]} 1/2-1/2

[Event "DVM U12w 2024"]
[Site "Bad Homburg"]
[Date "2024.12.29"]
[Round "6"]
[White "Wolf, Aurelia"]
[Black "Raghavan, Madhushri"]
[Result "0-1"]
[ECO "C54"]
[WhiteElo "1471"]
[BlackElo "1410"]
[Annotator "NA RC"]
[PlyCount "148"]
[EventDate "2024.12.23"]
[EventType "team-tourn"]
[EventRounds "7"]
[EventCountry "GER"]
[SourceTitle "playchess.com"]
[Source "ChessBase"]
[SourceQuality "1"]
[TimeControl "40/5400+30:1800+30"]

1. e4 {[%emt 0:00:02]} e5 {[%emt 0:00:33]} 2. Nf3 {[%emt 0:00:05]} Nc6 {[%emt 0:00:17]} 3. Bc4 {[%emt 0:00:04]} Bc5 {[%emt 0:00:42]} 4. c3 {[%emt 0:00:06]} Nf6 {[%emt 0:01:16]} 5. d4 {[%emt 0:00:07]} exd4 {[%emt 0:01:33]} 6. cxd4 {[%emt 0:00:07]} Bb4+ {[%emt 0:00:43]} 7. Nbd2 {[%emt 0:00:10]} Nxe4 {[%emt 0:02:08]} 8. O-O {[%emt 0:00:53]} Nxd2 {[%emt 0:02:19]} 9. Re1+ {[%emt 0:01:23]} Ne7 {[%emt 0:01:31]} 10. Bxd2 {[%emt 0:00:12]} Bxd2 {[%emt 0:00:51]} 11. Qxd2 {[%emt 0:00:15]} O-O {[%emt 0:01:20]} 12. Rac1 {[%emt 0:00:58]} d5 {[%emt 0:02:21]} 13. Bd3 {[%emt 0:00:26]} Nc6 {[%emt 0:01:36]} 14. Ne5 {[%emt 0:02:44]} Nxd4 {[%emt 0:02:26]} 15. Bxh7+ {[%emt 0:00:23]} Kxh7 {[%emt 0:03:35]} 16. Qxd4 {[%emt 0:00:15]} c6 {[%emt 0:04:15]} 17. Ng4 {[%emt 0:03:22]} Qh4 {[%emt 0:11:25]} 18. h3 {[%emt 0:01:46]} Bxg4 {[%emt 0:06:32]} 19. hxg4 {[%emt 0:01:35]} Qf6 {[%emt 0:03:34]} 20. Qb4 {[%emt 0:03:04]} b6 {[%emt 0:01:45]} 21. Qc3 {[%emt 0:01:55]} Qxc3 {[%emt 0:00:59]} 22. Rxc3 {[%emt 0:00:09]} c5 {[%emt 0:00:28]} 23. Re7 {[%emt 0:01:35]} Kg6 {[%emt 0:02:10]} 24. Ra3 {[%emt 0:02:06]} d4 {[%emt 0:03:23]} 25. Raxa7 {[%emt 0:01:45]} Rxa7 {[%emt 0:00:51]} 26. Rxa7 {[%emt 0:00:08]} Re8 {[%emt 0:01:52]} 27. Kf1 {[%emt 0:00:57]} d3 {[%emt 0:01:43]} 28. Rd7 {[%emt 0:00:32]} c4 {[%emt 0:00:21]} 29. Rd4 {[%emt 0:00:45]} Kg5 {[%emt 0:01:09]} 30. b3 {[%emt 0:03:30]} Rh8 {[%emt 0:05:32]} 31. f3 {[%emt 0:01:56]} cxb3 {[%emt 0:01:56]} 32. axb3 {[%emt 0:00:14]} Rh1+ {[%emt 0:03:45]} 33. Kf2 {[%emt 0:00:08]} Rd1 {[%emt 0:01:01]} 34. Ke3 {[%emt 0:01:49]} d2 {[%emt 0:01:58]} 35. Rxd2 {[%emt 0:00:15]} Rxd2 {[%emt 0:00:16]} 36. Kxd2 {[%emt 0:00:07]} Kf4 {[%emt 0:00:55]} 37. Kd3 {[%emt 0:00:09]} Kg3 {[%emt 0:00:25]} 38. Kc4 {[%emt 0:00:33]} Kxg2 {[%emt 0:00:16]} 39. g5 {[%emt 0:01:31]} Kxf3 {[%emt 0:00:23]} 40. Kb5 {[%emt 0:00:12]} Kf4 {[%emt 0:00:35]} 41. Kxb6 {[%emt 0:30:10]} Kxg5 {[%emt 0:30:14]} 42. Kc6 {[%emt 0:00:55]} f5 {[%emt 0:00:19]} 43. b4 {[%emt 0:00:10]} f4 {[%emt 0:00:27]} 44. b5 {[%emt 0:00:04]} f3 {[%emt 0:00:11]} 45. b6 {[%emt 0:00:05]} f2 {[%emt 0:00:09]} 46. b7 {[%emt 0:00:05]} f1=Q {[%emt 0:00:12]} 47. b8=Q {[%emt 0:00:11]} Qf6+ {[%emt 0:00:44]} 48. Kc5 {[%emt 0:00:43]} Qc3+ {[%emt 0:00:22]} 49. Kd5 {[%emt 0:00:00]} Qf3+ {[%emt 0:00:41]} 50. Kd4 {[%emt 0:00:00]} Qf4+ {[%emt 0:00:12]} 51. Qxf4+ {[%emt 0:00:11]} Kxf4 {[%emt 0:00:07]} 52. Kd3 {[%emt 0:00:13]} Kf3 {[%emt 0:00:22]} 53. Kd4 {[%emt 0:00:33]} g5 {[%emt 0:00:32]} 54. Kd5 {[%emt 0:00:13]} g4 {[%emt 0:00:08]} 55. Ke5 {[%emt 0:00:06]} g3 {[%emt 0:00:07]} 56. Kd5 {[%emt 0:00:05]} g2 {[%emt 0:00:08]} 57. Kd4 {[%emt 0:00:13]} g1=Q+ {[%emt 0:00:08]} 58. Ke5 {[%emt 0:00:07]} Qe1+ {[%emt 0:00:24]} 59. Kd5 {[%emt 0:00:15]} Kf4 {[%emt 0:00:28]} 60. Kd4 {[%emt 0:00:18]} Qe4+ {[%emt 0:00:23]} 61. Kc5 {[%emt 0:00:14]} Qd3 {[%emt 0:00:19]} 62. Kc6 {[%emt 0:00:15]} Ke5 {[%emt 0:00:18]} 63. Kc5 {[%emt 0:00:45]} Qd5+ {[%emt 0:00:03]} 64. Kb4 {[%emt 0:00:10]} Qc6 {[%emt 0:00:10]} 65. Kb3 {[%emt 0:00:07]} Kd4 {[%emt 0:00:08]} 66. Kb2 {[%emt 0:00:17]} Kd3 {[%emt 0:00:22]} 67. Kb1 {[%emt 0:00:35]} Kd2 {[%emt 0:00:18]} 68. Kb2 {[%emt 0:00:10]} Qc2+ {[%emt 0:00:09]} 69. Ka3 {[%emt 0:00:12]} Qb1 {[%emt 0:00:17]} 70. Ka4 {[%emt 0:00:04]} Kc3 {[%emt 0:00:11]} 71. Ka5 {[%emt 0:00:06]} Kc4 {[%emt 0:00:17]} 72. Ka6 {[%emt 0:00:10]} Kc5 {[%emt 0:00:08]} 73. Ka7 {[%emt 0:00:07]} Kc6 {[%emt 0:00:12]} 74. Ka8 {[%emt 0:00:17]} Qb7# {[%emt 0:00:08]} 0-1

[Event "DVM U12w 2024"]
[Site "Bad Homburg"]
[Date "2024.12.29"]
[Round "6"]
[White "Briese, Sophie"]
[Black "Frenzel, Qorianka"]
[Result "1-0"]
[ECO "C56"]
[WhiteElo "1465"]
[BlackElo "1568"]
[Annotator "NA RC"]
[PlyCount "128"]
[EventDate "2024.12.23"]
[EventType "team-tourn"]
[EventRounds "7"]
[EventCountry "GER"]
[SourceTitle "playchess.com"]
[Source "ChessBase"]
[SourceQuality "1"]
[TimeControl "40/5400+30:1800+30"]

1. e4 {[%emt 0:00:01]} e5 {[%emt 0:00:08]} 2. Nf3 {[%emt 0:00:05]} Nc6 {[%emt 0:00:07]} 3. Bc4 {[%emt 0:00:06]} Nf6 {[%emt 0:00:05]} 4. d4 {[%emt 0:00:56]} exd4 {[%emt 0:00:06]} 5. O-O {[%emt 0:00:10]} Be7 {[%emt 0:00:36]} 6. e5 {[%emt 0:01:33]} Ne4 {[%emt 0:00:29]} 7. Bf4 {[%emt 0:06:20]} O-O {[%emt 0:03:10]} 8. Nxd4 {[%emt 0:01:47]} d5 {[%emt 0:03:40]} 9. Nxc6 {[%emt 0:06:19]} bxc6 {[%emt 0:01:46]} 10. Be2 {[%emt 0:10:03]} Bc5 {[%emt 0:01:41]} 11. Nd2 {[%emt 0:02:42]} Be6 {[%emt 0:04:00]} 12. Nxe4 {[%emt 0:02:13]} dxe4 {[%emt 0:00:51]} 13. Ba6 {[%emt 0:02:41]} Rb8 {[%emt 0:01:31]} 14. b3 {[%emt 0:01:58]} Re8 {[%emt 0:07:05]} 15. Qxd8 {[%emt 0:01:20]} Rexd8 {[%emt 0:03:23]} 16. Rad1 {[%emt 0:00:58]} Bd4 {[%emt 0:07:17]} 17. Kh1 {[%emt 0:09:35]} Bc8 {[%emt 0:05:11]} 18. Bc4 {[%emt 0:04:37]} Bg4 {[%emt 0:04:06]} 19. Rde1 {[%emt 0:02:16]} Bf5 {[%emt 0:15:30]} 20. e6 {[%emt 0:01:09]} fxe6 {[%emt 0:03:00]} 21. Bxc7 {[%emt 0:01:34]} Bc3 {[%emt 0:02:10]} 22. Re2 {[%emt 0:01:13]} Rbc8 {[%emt 0:01:39]} 23. Bxd8 {[%emt 0:00:30]} Rxd8 {[%emt 0:00:07]} 24. Re3 {[%emt 0:03:17]} Bf6 {[%emt 0:01:39]} 25. f3 {[%emt 0:06:58]} Bd4 {[%emt 0:01:56]} 26. Rd1 {[%emt 0:03:23]} Bb6 {[%emt 0:05:11]} 27. Rxd8+ {[%emt 0:00:42]} Bxd8 {[%emt 0:00:02]} 28. fxe4 {[%emt 0:01:04]} Bb6 {[%emt 0:02:48]} 29. Rf3 {[%emt 0:05:49]} Bg4 {[%emt 0:02:26]} 30. Rf4 {[%emt 0:01:00]} h5 {[%emt 0:01:16]} 31. h3 {[%emt 0:00:45]} Bd1 {[%emt 0:00:17]} 32. Bxe6+ {[%emt 0:00:09]} Kh7 {[%emt 0:00:14]} 33. c4 {[%emt 0:02:13]} Bc2 {[%emt 0:01:05]} 34. Bd7 {[%emt 0:01:22]} c5 {[%emt 0:00:31]} 35. e5 {[%emt 0:00:53]} Bc7 {[%emt 0:00:32]} 36. Rf2 {[%emt 0:00:10]} Bg6 {[%emt 0:00:28]} 37. e6 {[%emt 0:00:18]} Bd8 {[%emt 0:00:23]} 38. Re2 {[%emt 0:00:29]} Be7 {[%emt 0:00:12]} 39. a3 {[%emt 0:01:01]} a5 {[%emt 0:00:39]} 40. Bc8 {[%emt 0:04:21]} Be8 {[%emt 0:00:34]} 41. Bd7 {[%emt 0:31:50]} Bg6 {[%emt 0:30:17]} 42. b4 {[%emt 0:03:48]} cxb4 {[%emt 0:00:29]} 43. axb4 {[%emt 0:00:07]} axb4 {[%emt 0:00:07]} 44. Ba4 {[%emt 0:02:11]} Bd3 {[%emt 0:00:25]} 45. Rd2 {[%emt 0:01:21]} Bxc4 {[%emt 0:01:30]} 46. Rd7 {[%emt 0:00:08]} Bf6 {[%emt 0:01:17]} 47. e7 {[%emt 0:01:00]} Bf7 {[%emt 0:00:50]} 48. Rb7 {[%emt 0:02:14]} b3 {[%emt 0:02:31]} 49. Bxb3 {[%emt 0:01:32]} Bxe7 {[%emt 0:00:27]} 50. Bxf7 {[%emt 0:00:07]} Bf6 {[%emt 0:00:12]} 51. Rb5 {[%emt 0:00:42]} g6 {[%emt 0:00:29]} 52. g4 {[%emt 0:01:16]} hxg4 {[%emt 0:00:48]} 53. hxg4 {[%emt 0:00:07]} Kg7 {[%emt 0:00:25]} 54. Be8 {[%emt 0:00:50]} Kh6 {[%emt 0:00:46]} 55. Rb6 {[%emt 0:01:18]} Kg5 {[%emt 0:00:49]} 56. Kg2 {[%emt 0:01:00]} Bd8 {[%emt 0:00:49]} 57. Rxg6+ {[%emt 0:00:08]} Kf4 {[%emt 0:00:16]} 58. Rg8 {[%emt 0:01:58]} Bg5 {[%emt 0:00:15]} 59. Rf8+ {[%emt 0:00:37]} Kxg4 {[%emt 0:00:13]} 60. Bd7+ {[%emt 0:00:35]} Kh5 {[%emt 0:00:21]} 61. Kf3 {[%emt 0:01:17]} Kg6 {[%emt 0:00:37]} 62. Kg4 {[%emt 0:00:27]} Kg7 {[%emt 0:00:48]} 63. Rc8 {[%emt 0:00:30]} Be7 {[%emt 0:00:19]} 64. Kf5 {[%emt 0:00:39]} Bf8 {[%emt 0:00:24]} 1-0

[Event "DVM U12w 2024"]
[Site "Bad Homburg"]
[Date "2024.12.29"]
[Round "6"]
[White "Helbig, Frieda"]
[Black "Doberchak, Emily Alice"]
[Result "0-1"]
[ECO "C56"]
[WhiteElo "1443"]
[BlackElo "1106"]
[Annotator "NA RC"]
[PlyCount "88"]
[EventDate "2024.12.23"]
[EventType "team-tourn"]
[EventRounds "7"]
[EventCountry "GER"]
[SourceTitle "playchess.com"]
[Source "ChessBase"]
[SourceQuality "1"]
[TimeControl "40/5400+30:1800+30"]

1. e4 {[%emt 0:00:03]} e5 {[%emt 0:00:06]} 2. Nf3 {[%emt 0:00:06]} Nc6 {[%emt 0:00:06]} 3. d4 {[%emt 0:00:07]} exd4 {[%emt 0:00:07]} 4. Bc4 {[%emt 0:00:10]} Nf6 {[%emt 0:00:16]} 5. e5 {[%emt 0:00:11]} d5 {[%emt 0:00:25]} 6. Bb5 {[%emt 0:00:08]} Ne4 {[%emt 0:00:44]} 7. Nxd4 {[%emt 0:00:11]} Bd7 {[%emt 0:00:19]} 8. Bxc6 {[%emt 0:00:12]} bxc6 {[%emt 0:00:15]} 9. O-O {[%emt 0:00:12]} Bc5 {[%emt 0:00:18]} 10. f3 {[%emt 0:00:30]} Ng5 {[%emt 0:00:35]} 11. f4 {[%emt 0:00:16]} Ne6 {[%emt 0:00:21]} 12. Be3 {[%emt 0:00:13]} O-O {[%emt 0:00:25]} 13. Nd2 {[%emt 0:00:52]} Nxd4 {[%emt 0:00:46]} 14. Bxd4 {[%emt 0:00:46]} Bxd4+ {[%emt 0:00:18]} 15. Kh1 {[%emt 0:00:11]} f6 {[%emt 0:00:54]} 16. c3 {[%emt 0:00:33]} Bb6 {[%emt 0:00:17]} 17. Nf3 {[%emt 0:00:22]} Bg4 {[%emt 0:00:23]} 18. h3 {[%emt 0:00:18]} Bxf3 {[%emt 0:00:19]} 19. Rxf3 {[%emt 0:00:29]} fxe5 {[%emt 0:00:28]} 20. fxe5 {[%emt 0:00:24]} Rxf3 {[%emt 0:00:34]} 21. Qxf3 {[%emt 0:00:08]} Qf8 {[%emt 0:01:11]} 22. Qg4 {[%emt 0:00:54]} Qe7 {[%emt 0:01:39]} 23. Qg3 {[%emt 0:01:03]} Rf8 {[%emt 0:00:47]} 24. Rd1 {[%emt 0:01:31]} Rf2 {[%emt 0:00:24]} 25. Rb1 {[%emt 0:01:27]} Re2 {[%emt 0:00:15]} 26. a4 {[%emt 0:00:28]} Qxe5 {[%emt 0:00:19]} 27. Qd3 {[%emt 0:01:09]} Qe4 {[%emt 0:00:25]} 28. Qxe4 {[%emt 0:01:40]} dxe4 {[%emt 0:00:17]} 29. b4 {[%emt 0:00:14]} a5 {[%emt 0:00:19]} 30. bxa5 {[%emt 0:00:18]} Bxa5 {[%emt 0:00:25]} 31. Kh2 {[%emt 0:01:12]} Bxc3 {[%emt 0:00:23]} 32. Kg3 {[%emt 0:00:36]} Re1 {[%emt 0:00:43]} 33. Kg4 {[%emt 0:00:16]} Rxb1 {[%emt 0:00:11]} 34. Kf5 {[%emt 0:00:26]} e3 {[%emt 0:00:21]} 35. Ke6 {[%emt 0:00:10]} e2 {[%emt 0:00:24]} 36. Kd7 {[%emt 0:00:09]} e1=Q {[%emt 0:00:11]} 37. Kxc7 {[%emt 0:00:10]} Ra1 {[%emt 0:00:23]} 38. Kxc6 {[%emt 0:00:11]} Rxa4 {[%emt 0:00:08]} 39. Kb5 {[%emt 0:00:19]} Rf4 {[%emt 0:00:11]} 40. Kb6 {[%emt 0:00:22]} Qe6+ {[%emt 0:00:23]} 41. Kb5 {[%emt 0:31:07]} Qe5+ {[%emt 0:30:19]} 42. Kb6 {[%emt 0:00:24]} Rf6+ {[%emt 0:00:04]} 43. Kb7 {[%emt 0:00:26]} Qe7+ {[%emt 0:00:17]} 44. Kb8 {[%emt 0:00:18]} Rf8# {[%emt 0:00:04]} 0-1

[Event "DVM U12w 2024"]
[Site "Bad Homburg"]
[Date "2024.12.29"]
[Round "6"]
[White "Winkler, Anni"]
[Black "Elsayed Esam, Sally"]
[Result "0-1"]
[ECO "B12"]
[WhiteElo "1404"]
[BlackElo "1563"]
[Annotator "NA RC"]
[PlyCount "49"]
[EventDate "2024.12.23"]
[EventType "team-tourn"]
[EventRounds "7"]
[EventCountry "GER"]
[SourceTitle "playchess.com"]
[Source "ChessBase"]
[SourceQuality "1"]
[TimeControl "40/5400+30:1800+30"]

1. e4 {[%emt 0:01:13]} c6 {[%emt 0:00:28]} 2. d4 {[%emt 0:00:26]} d5 {[%emt 0:00:21]} 3. e5 {[%emt 0:00:32]} c5 {[%emt 0:00:30]} 4. c3 {[%emt 0:05:21]} e6 {[%emt 0:03:33]} 5. Be3 {[%emt 0:00:41]} Ne7 {[%emt 0:01:08]} 6. a3 {[%emt 0:00:50]} cxd4 {[%emt 0:00:24]} 7. cxd4 {[%emt 0:00:16]} Nf5 {[%emt 0:00:38]} 8. Bd2 {[%emt 0:01:15]} a6 {[%emt 0:00:58]} 9. Nc3 {[%emt 0:00:21]} Nc6 {[%emt 0:01:19]} 10. Nf3 {[%emt 0:05:59]} h6 {[%emt 0:01:03]} 11. Bd3 {[%emt 0:03:38]} Nfxd4 {[%emt 0:01:56]} 12. Nxd4 {[%emt 0:03:54]} Nxd4 {[%emt 0:00:48]} 13. b4 {[%emt 0:07:25]} Bd7 {[%emt 0:05:39]} 14. Be3 {[%emt 0:04:37]} Nc6 {[%emt 0:02:09]} 15. Bf4 {[%emt 0:04:05]} Be7 {[%emt 0:02:33]} 16. Qd2 {[%emt 0:00:28]} Bg5 {[%emt 0:03:48]} 17. O-O {[%emt 0:08:19]} Nxe5 {[%emt 0:01:53]} 18. Bxg5 {[%emt 0:01:05]} hxg5 {[%emt 0:02:16]} 19. Rfe1 {[%emt 0:00:53]} Nxd3 {[%emt 0:02:40]} 20. Qxd3 {[%emt 0:00:28]} Kf8 {[%emt 0:01:16]} 21. Rad1 {[%emt 0:03:07]} Qc7 {[%emt 0:04:21]} 22. g3 {[%emt 0:03:41]} Rc8 {[%emt 0:12:04]} 23. Rc1 {[%emt 0:00:47]} Qc4 {[%emt 0:02:32]} 24. Qf3 {[%emt 0:01:30]} Qb3 {[%emt 0:02:02]} 25. Qe3 {[%emt 0:04:23]} 0-1

[Event "DVM U12w 2024"]
[Site "Bad Homburg"]
[Date "2024.12.29"]
[Round "6"]
[White "Ulianova, Anna"]
[Black "Bykov, Sophia"]
[Result "1-0"]
[ECO "C36"]
[WhiteElo "1267"]
[BlackElo "1033"]
[Annotator "NA RC"]
[PlyCount "73"]
[EventDate "2024.12.23"]
[EventType "team-tourn"]
[EventRounds "7"]
[EventCountry "GER"]
[SourceTitle "playchess.com"]
[Source "ChessBase"]
[SourceQuality "1"]
[TimeControl "40/5400+30:1800+30"]

1. e4 {[%emt 0:00:05]} e5 {[%emt 0:00:05]} 2. f4 {[%emt 0:00:05]} d5 {[%emt 0:00:07]} 3. exd5 {[%emt 0:00:05]} exf4 {[%emt 0:00:07]} 4. Nf3 {[%emt 0:00:47]} Nf6 {[%emt 0:00:07]} 5. Bc4 {[%emt 0:02:55]} Bd6 {[%emt 0:01:24]} 6. O-O {[%emt 0:00:34]} O-O {[%emt 0:00:44]} 7. d4 {[%emt 0:00:24]} c6 {[%emt 0:01:06]} 8. Ne5 {[%emt 0:14:43]} cxd5 {[%emt 0:00:47]} 9. Bd3 {[%emt 0:00:50]} Qb6 {[%emt 0:04:22]} 10. Nf3 {[%emt 0:08:23]} Bg4 {[%emt 0:00:41]} 11. c3 {[%emt 0:02:09]} Bxf3 {[%emt 0:02:24]} 12. Qxf3 {[%emt 0:06:55]} Nc6 {[%emt 0:02:08]} 13. Rf2 {[%emt 0:07:31]} Ne5 {[%emt 0:03:47]} 14. dxe5 {[%emt 0:03:17]} Bc5 {[%emt 0:02:45]} 15. exf6 {[%emt 0:00:51]} Rae8 {[%emt 0:04:14]} 16. Kf1 {[%emt 0:04:48]} Bxf2 {[%emt 0:05:47]} 17. Qxf2 {[%emt 0:00:08]} Qxf6 {[%emt 0:01:10]} 18. Nd2 {[%emt 0:11:17]} Re3 {[%emt 0:01:29]} 19. Bb1 {[%emt 0:15:00]} Rfe8 {[%emt 0:00:58]} 20. Nf3 {[%emt 0:01:14]} Re2 {[%emt 0:07:41]} 21. Qxa7 {[%emt 0:04:39]} g5 {[%emt 0:06:08]} 22. h3 {[%emt 0:01:47]} h5 {[%emt 0:01:29]} 23. Bd3 {[%emt 0:01:24]} R2e7 {[%emt 0:05:07]} 24. Bb5 {[%emt 0:02:27]} Rd8 {[%emt 0:05:08]} 25. Qd4 {[%emt 0:02:15]} Qe6 {[%emt 0:02:57]} 26. Bd2 {[%emt 0:00:32]} Qf5 {[%emt 0:07:18]} 27. Bd3 {[%emt 0:02:42]} Qd7 {[%emt 0:05:12]} 28. Nxg5 {[%emt 0:01:19]} Re4 {[%emt 0:15:01]} 29. Bxe4 {[%emt 0:01:05]} dxe4 {[%emt 0:00:12]} 30. Qxd7 {[%emt 0:00:04]} Rxd7 {[%emt 0:00:07]} 31. Bxf4 {[%emt 0:00:40]} Re7 {[%emt 0:00:53]} 32. Re1 {[%emt 0:01:23]} f5 {[%emt 0:00:27]} 33. a4 {[%emt 0:00:24]} Kg7 {[%emt 0:00:30]} 34. a5 {[%emt 0:00:32]} Kg6 {[%emt 0:01:54]} 35. Rd1 {[%emt 0:00:28]} e3 {[%emt 0:01:43]} 36. Rd6+ {[%emt 0:00:15]} Kg7 {[%emt 0:00:22]} 37. Ke2 {[%emt 0:00:17]} 1-0